fUSD/lending_fUSD_20260527
["ID","MTS","AMOUNT","RATE_DAILY","PERIOD"]
[423064027,1779811336000,157.64,0.0001049,2]
[423064028,1779811337000,157.64,0.00011988,2]
[423064030,1779811337000,157.64,0.00014985,2]
[423064029,1779811337000,157.64,0.00013487,2]
[423064040,1779811831000,-150.0,0.00015945,2]
[423064042,1779811831000,-157.64,0.00016484,2]
[423064046,1779811831000,-165.0,0.0002,2]
[423064044,1779811831000,-257.0,0.0001841,2]
[423064043,1779811831000,-157.64,0.00017982,2]
[423064047,1779811831000,-202.0,0.0002,2]
[423064045,1779811831000,-157.64,0.00019481,2]
[423064048,1779811831000,-188.0,0.0002,2]
[423064041,1779811831000,-257.0,0.00016438,2]
[423064049,1779811831000,-158.0,0.0002,2]
[423064061,1779811831000,-150.0,0.00020707,2]
[423064052,1779811831000,-164.0,0.0002,2]
[423064059,1779811831000,-459.24,0.0002048,2]
[423064056,1779811831000,-257.0,0.00020381,2]
[423064051,1779811831000,-267.0,0.0002,2]
[423064057,1779811831000,-367.0,0.00020435,2]
[423064050,1779811831000,-417.0,0.0002,2]
[423064054,1779811831000,-1120.33,0.00020319,2]
[423064055,1779811831000,-713.0,0.0002037,2]
[423064058,1779811831000,-367.65,0.00020467,2]
[423064053,1779811831000,-237.0,0.0002,2]
[423064060,1779811831000,-200.0,0.00020688,2]
[423064105,1779811832000,-240.03508294,0.00021469,2]
[423064108,1779811832000,-500.0,0.00021469,2]
[423064104,1779811832000,-500.0,0.00021469,2]
[423064101,1779811832000,-500.0,0.00021469,2]
[423064102,1779811832000,-500.0,0.00021469,2]
[423064099,1779811832000,-500.0,0.00021469,2]
[423064106,1779811832000,-322.01590857,0.00021469,2]
[423064098,1779811832000,-500.0,0.00021469,2]
[423064096,1779811832000,-3224.896,0.00021469,2]
[423064097,1779811832000,-167.321,0.00021469,2]
[423064100,1779811832000,-500.0,0.00021469,2]
[423064107,1779811832000,-167.37977558,0.00021469,2]
[423064111,1779811832000,-500.0,0.00021469,2]
[423064094,1779811832000,-500.0,0.00021469,2]
[423064110,1779811832000,-500.0,0.00021469,2]
[423064112,1779811832000,-500.0,0.00021469,2]
[423064113,1779811832000,-209.296749,0.00021469,2]
[423064115,1779811832000,-500.0,0.00021469,2]
[423064114,1779811832000,-500.0,0.00021469,2]
[423064122,1779811832000,-500.0,0.00021469,2]
[423064116,1779811832000,-500.0,0.00021469,2]
[423064117,1779811832000,-500.0,0.00021469,2]
[423064119,1779811832000,-500.0,0.00021469,2]
[423064118,1779811832000,-500.0,0.00021469,2]
[423064109,1779811832000,-500.0,0.00021469,2]
[423064095,1779811832000,-500.0,0.00021469,2]
[423064091,1779811832000,-289.62764343,0.00021469,2]
[423064120,1779811832000,-500.0,0.00021469,2]
[423064062,1779811832000,-166.66,0.00020766,2]
[423064063,1779811832000,-200.0,0.000209,7]
[423064064,1779811832000,-157.64,0.0002098,2]
[423064065,1779811832000,-165.0,0.00021,2]
[423064067,1779811832000,-188.0,0.00021,2]
[423064068,1779811832000,-2.49464651,0.00021,2]
[423064066,1779811832000,-202.0,0.00021,2]
[423064070,1779811832000,-300.53987626,0.00021,2]
[423064069,1779811832000,-155.50535349,0.00021,2]
[423064074,1779811832000,-267.0,0.00021,2]
[423064072,1779811832000,-417.0,0.00021,2]
[423064092,1779811832000,-500.0,0.00021469,2]
[423064080,1779811832000,-163.5,0.0002137,2]
[423064082,1779811832000,-1521.56566924,0.0002137,2]
[423064081,1779811832000,-172.39854152,0.0002137,2]
[423064079,1779811832000,-166.66,0.00021203,2]
[423064085,1779811832000,-1513.47594859,0.0002137,2]
[423064083,1779811832000,-2584.4621497,0.0002137,2]
[423064084,1779811832000,-554.18570853,0.0002137,2]
[423064086,1779811832000,-347.87619318,0.0002137,2]
[423064087,1779811832000,-464.7052,0.0002137,2]
[423064088,1779811832000,-495.93,0.0002146,3]
[423064090,1779811832000,-500.0,0.00021469,2]
[423064089,1779811832000,-500.0,0.00021469,2]
[423064077,1779811832000,-237.0,0.00021,2]
[423064124,1779811832000,-500.0,0.00021469,2]
[423064093,1779811832000,-500.0,0.00021469,2]
[423064123,1779811832000,-320.78153145,0.00021469,2]
[423064157,1779811832000,-500.0,0.00021469,2]
[423064155,1779811832000,-329.73339537,0.00021469,2]
[423064153,1779811832000,-500.0,0.00021469,2]
[423064154,1779811832000,-500.0,0.00021469,2]
[423064160,1779811832000,-500.0,0.00021469,2]
[423064159,1779811832000,-400.0,0.00021469,2]
[423064156,1779811832000,-500.0,0.00021469,2]
[423064158,1779811832000,-500.0,0.00021469,2]
[423064162,1779811832000,-500.0,0.00021469,2]
[423064161,1779811832000,-500.0,0.00021469,2]
[423064164,1779811832000,-451.0189676,0.00021469,2]
[423064151,1779811832000,-500.0,0.00021469,2]
[423064163,1779811832000,-48.9810324,0.00021469,2]
[423064172,1779811832000,-500.0,0.00021469,2]
[423064168,1779811832000,-500.0,0.00021469,2]
[423064167,1779811832000,-196.60088083,0.00021469,2]
[423064165,1779811832000,-500.0,0.00021469,2]
[423064169,1779811832000,-500.0,0.00021469,2]
[423064166,1779811832000,-303.39911917,0.00021469,2]
[423064170,1779811832000,-500.0,0.00021469,2]
[423064173,1779811832000,-487.0,0.0002147,2]
[423064174,1779811832000,-487.0,0.0002147,2]
[423064176,1779811832000,-166.66,0.0002164,2]
[423064175,1779811832000,-548.5,0.0002147,2]
[423064171,1779811832000,-276.98571218,0.00021469,2]
[423064152,1779811832000,-500.0,0.00021469,2]
[423064178,1779811832000,-689.66801555,0.00021918,2]
[423064150,1779811832000,-500.0,0.00021469,2]
[423064125,1779811832000,-500.0,0.00021469,2]
[423064126,1779811832000,-500.0,0.00021469,2]
[423064128,1779811832000,-500.0,0.00021469,2]
[423064136,1779811832000,-500.0,0.00021469,2]
[423064130,1779811832000,-500.0,0.00021469,2]
[423064129,1779811832000,-500.0,0.00021469,2]
[423064127,1779811832000,-551.05144875,0.00021469,2]
[423064133,1779811832000,-500.0,0.00021469,2]
[423064134,1779811832000,-500.0,0.00021469,2]
[423064131,1779811832000,-500.0,0.00021469,2]
[423064135,1779811832000,-500.0,0.00021469,2]
[423064132,1779811832000,-500.0,0.00021469,2]
[423064138,1779811832000,-500.0,0.00021469,2]
[423064137,1779811832000,-500.0,0.00021469,2]
[423064140,1779811832000,-500.0,0.00021469,2]
[423064139,1779811832000,-564.65742764,0.00021469,2]
[423064142,1779811832000,-500.0,0.00021469,2]
[423064141,1779811832000,-500.0,0.00021469,2]
[423064147,1779811832000,-500.0,0.00021469,2]
[423064143,1779811832000,-500.0,0.00021469,2]
[423064145,1779811832000,-500.0,0.00021469,2]
[423064144,1779811832000,-500.0,0.00021469,2]
[423064146,1779811832000,-500.0,0.00021469,2]
[423064148,1779811832000,-500.0,0.00021469,2]
[423064149,1779811832000,-500.0,0.00021469,2]
[423064177,1779811832000,-500.0,0.000219,2]
[423064121,1779811832000,-172.72941095,0.00021469,2]
[423064182,1779811838000,-2023.2261267,0.00021918,2]
[423064184,1779811838000,-1682.20121288,0.00021918,2]
[423064183,1779811838000,-422.26630739,0.00021918,2]
[423064195,1779811840000,-182.63833748,0.00021918,2]
[423064197,1779811840000,-202.0,0.00022,2]
[423064198,1779811840000,-188.0,0.00022,2]
[423064196,1779811840000,-165.0,0.00022,2]
[423064201,1779811840000,-267.0,0.00022,2]
[423064200,1779811840000,-417.0,0.00022,2]
[423064202,1779811840000,-13.81166252,0.00022,2]
[423064199,1779811840000,-158.0,0.00022,2]
[423064205,1779811840000,-195.40255477,0.00022204,2]
[423064204,1779811840000,-166.66,0.00022077,30]
[423064206,1779811840000,-810.56744523,0.00022204,2]
[423064208,1779811840000,-257.0,0.00022353,2]
[423064210,1779811840000,-484.49311848,0.00022719,2]
[423064207,1779811840000,-174.42,0.00022273,2]
[423064209,1779811840000,-166.66,0.00022515,30]
[423064203,1779811840000,-223.18833748,0.00022,2]
[423064256,1779811843000,-500.0,0.00022719,2]
[423064249,1779811843000,-151.0,0.00022719,2]
[423064248,1779811843000,-500.0,0.00022719,2]
[423064250,1779811843000,-500.0,0.00022719,2]
[423064251,1779811843000,-151.0,0.00022719,2]
[423064252,1779811843000,-500.0,0.00022719,2]
[423064254,1779811843000,-500.0,0.00022719,2]
[423064255,1779811843000,-151.0,0.00022719,2]
[423064263,1779811843000,-202.0,0.00023,2]
[423064259,1779811843000,-151.0,0.00022719,2]
[423064257,1779811843000,-151.0,0.00022719,2]
[423064261,1779811843000,-166.66,0.00022952,30]
[423064258,1779811843000,-500.0,0.00022719,2]
[423064260,1779811843000,-500.0,0.00022799,2]
[423064262,1779811843000,-165.0,0.00023,2]
[423064247,1779811843000,-151.0,0.00022719,2]
[423064264,1779811843000,-188.0,0.00023,2]
[423064253,1779811843000,-151.0,0.00022719,2]
[423064246,1779811843000,-151.0,0.00022719,2]
[423064236,1779811843000,-500.0,0.00022719,2]
[423064245,1779811843000,-500.0,0.00022719,2]
[423064265,1779811843000,-158.0,0.00023,2]
[423064226,1779811843000,-19.44720242,0.00022719,2]
[423064227,1779811843000,-200.0,0.00022719,2]
[423064238,1779811843000,-151.0,0.00022719,2]
[423064228,1779811843000,-151.0,0.00022719,2]
[423064229,1779811843000,-500.0,0.00022719,2]
[423064232,1779811843000,-500.0,0.00022719,2]
[423064230,1779811843000,-1798.80895522,0.00022719,2]
[423064244,1779811843000,-151.0,0.00022719,2]
[423064231,1779811843000,-151.0,0.00022719,2]
[423064234,1779811843000,-500.0,0.00022719,2]
[423064237,1779811843000,-500.0,0.00022719,2]
[423064235,1779811843000,-151.0,0.00022719,2]
[423064239,1779811843000,-500.0,0.00022719,2]
[423064240,1779811843000,-151.0,0.00022719,2]
[423064241,1779811843000,-500.0,0.00022719,2]
[423064242,1779811843000,-151.0,0.00022719,2]
[423064243,1779811843000,-500.0,0.00022719,2]
[423064233,1779811843000,-151.0,0.00022719,2]
[423064269,1779811843000,-237.0,0.00023,2]
[423064305,1779811843000,-220.9130133,0.00025,2]
[423064270,1779811843000,-367.65,0.00023025,2]
[423064293,1779811843000,-183.9,0.00024658,2]
[423064292,1779811843000,-4215.0,0.00024654,2]
[423064290,1779811843000,-241.07983724,0.000245,2]
[423064294,1779811843000,-188.45,0.00024658,2]
[423064297,1779811843000,-184.99512615,0.00024891,2]
[423064296,1779811843000,-187.29,0.00024658,2]
[423064298,1779811843000,-400.0,0.000249,9]
[423064299,1779811843000,-200.0,0.00024911,2]
[423064300,1779811843000,-2080.17592889,0.00024911,2]
[423064304,1779811843000,-180.0,0.00025,2]
[423064302,1779811843000,-20827.58,0.0002498,2]
[423064301,1779811843000,-150.99,0.0002498,2]
[423064306,1779811843000,-203.0,0.00025,2]
[423064307,1779811843000,-176.0,0.00025,2]
[423064309,1779811843000,-283.0,0.00025,2]
[423064308,1779811843000,-426.98464021,0.00025,2]
[423064267,1779811843000,-121.08384236,0.00023,2]
[423064288,1779811843000,-1207.04309046,0.00024363,2]
[423064291,1779811843000,-892.38377677,0.000245,2]
[423064303,1779811843000,-9999.99,0.0002498,2]
[423064286,1779811843000,-200.0,0.00024363,2]
[423064266,1779811843000,-417.0,0.00023,2]
[423064273,1779811843000,-1865.36488656,0.00023267,2]
[423064289,1779811843000,-189.1515714,0.00024363,2]
[423064271,1779811843000,-151.0,0.00023267,2]
[423064272,1779811843000,-200.0,0.00023267,2]
[423064274,1779811843000,-1521.56566917,0.00023339,2]
[423064275,1779811843000,-257.33592956,0.00023815,2]
[423064276,1779811843000,-200.0,0.00023815,2]
[423064279,1779811843000,-202.0,0.00024,2]
[423064268,1779811843000,-145.91615764,0.00023,2]
[423064278,1779811843000,-165.0,0.00024,2]
[423064285,1779811843000,-257.0,0.00024324,2]
[423064284,1779811843000,-237.0,0.00024,2]
[423064287,1779811843000,-609.76091084,0.00024363,2]
[423064281,1779811843000,-158.0,0.00024,2]
[423064280,1779811843000,-188.0,0.00024,2]
[423064282,1779811843000,-417.0,0.00024,2]
[423064277,1779811843000,-1934.38338736,0.00023815,2]
[423064283,1779811843000,-267.0,0.00024,2]
[423064354,1779811844000,-503.8437914,0.00027296,2]
[423064349,1779811844000,-500.0,0.00027296,2]
[423064356,1779811844000,-500.0,0.00027296,2]
[423064357,1779811844000,-500.0,0.00027296,2]
[423064352,1779811844000,-500.0,0.00027296,2]
[423064353,1779811844000,-500.0,0.00027296,2]
[423064351,1779811844000,-500.0,0.00027296,2]
[423064350,1779811844000,-500.0,0.00027296,2]
[423064358,1779811844000,-500.0,0.00027296,2]
[423064348,1779811844000,-625.7470238,0.00027296,2]
[423064347,1779811844000,-500.0,0.00027296,2]
[423064355,1779811844000,-500.0,0.00027296,2]
[423064360,1779811844000,-500.0,0.00027296,2]
[423064367,1779811844000,-500.0,0.00027296,2]
[423064361,1779811844000,-500.0,0.00027296,2]
[423064370,1779811844000,-500.0,0.00027296,2]
[423064371,1779811844000,-500.0,0.00027296,2]
[423064362,1779811844000,-500.0,0.00027296,2]
[423064366,1779811844000,-500.0,0.00027296,2]
[423064363,1779811844000,-168.15877499,0.00027296,2]
[423064369,1779811844000,-500.0,0.00027296,2]
[423064368,1779811844000,-500.0,0.00027296,2]
[423064372,1779811844000,-547.75839113,0.00027296,2]
[423064373,1779811844000,-500.0,0.00027296,2]
[423064374,1779811844000,-500.0,0.00027296,2]
[423064346,1779811844000,-500.0,0.00027296,2]
[423064359,1779811844000,-500.0,0.00027296,2]
[423064337,1779811844000,-500.0,0.00026591,2]
[423064331,1779811844000,-200.0,0.00026555,2]
[423064343,1779811844000,-500.0,0.00027296,2]
[423064377,1779811844000,-500.0,0.00027296,2]
[423064313,1779811844000,-1521.56566917,0.00025307,2]
[423064310,1779811844000,-247.0,0.00025,2]
[423064311,1779811844000,-504.0,0.00025082,2]
[423064314,1779811844000,-5211.0,0.00025412,2]
[423064315,1779811844000,-200.0,0.00025459,2]
[423064316,1779811844000,-2157.14243826,0.00025459,2]
[423064312,1779811844000,-499.99997,0.00025082,2]
[423064317,1779811844000,-367.65,0.00025583,2]
[423064318,1779811844000,-1000.0,0.000256,2]
[423064320,1779811844000,-1000.0,0.00025732,2]
[423064322,1779811844000,-2805.92768337,0.00025913,2]
[423064321,1779811844000,-208.02,0.00025732,2]
[423064342,1779811844000,-1521.56566917,0.00027276,2]
[423064319,1779811844000,-500.0,0.00025605,2]
[423064327,1779811844000,-257.0,0.00026296,2]
[423064324,1779811844000,-2236.95670847,0.00026007,2]
[423064323,1779811844000,-200.0,0.00026007,2]
[423064329,1779811844000,-504.0,0.00026303,3]
[423064333,1779811844000,-2319.72410669,0.00026555,2]
[423064335,1779811844000,-500.0,0.00026591,2]
[423064344,1779811844000,-500.0,0.00027296,2]
[423064336,1779811844000,-500.0,0.00026591,2]
[423064341,1779811844000,-2405.55389863,0.00027103,2]
[423064338,1779811844000,-5135.0,0.00026941,2]
[423064340,1779811844000,-202.64095844,0.00027103,2]
[423064339,1779811844000,-1000.0,0.00027,2]
[423064345,1779811844000,-500.0,0.00027296,2]
[423064325,1779811844000,-500.0,0.00026013,2]
[423064379,1779811844000,-500.0,0.00027296,2]
[423064364,1779811844000,-500.0,0.00027296,2]
[423064375,1779811844000,-500.0,0.00027296,2]
[423064412,1779811844000,-1000.0,0.00029,2]
[423064415,1779811844000,-1000.0,0.00029,2]
[423064413,1779811844000,-1000.0,0.00029,2]
[423064418,1779811844000,-1000.0,0.00029,2]
[423064419,1779811844000,-1000.0,0.00029,2]
[423064421,1779811844000,-1456.0,0.00029,2]
[423064417,1779811844000,-1000.0,0.00029,2]
[423064414,1779811844000,-1000.0,0.00029,2]
[423064411,1779811844000,-300.0,0.00029,3]
[423064416,1779811844000,-1000.0,0.00029,2]
[423064420,1779811844000,-1000.0,0.00029,2]
[423064422,1779811844000,-152.0,0.00029191,7]
[423064423,1779811844000,-150.0,0.00029195,7]
[423064425,1779811844000,-150.0,0.00029195,7]
[423064435,1779811844000,-154.0,0.00029594,30]
[423064424,1779811844000,-150.59932888,0.00029195,7]
[423064427,1779811844000,-152.0,0.00029221,7]
[423064426,1779811844000,-150.0,0.00029195,7]
[423064428,1779811844000,-1521.56566917,0.00029244,2]
[423064432,1779811844000,-161.0,0.00029594,30]
[423064430,1779811844000,-1500.0,0.000293,7]
[423064433,1779811844000,-152.0,0.00029594,30]
[423064429,1779811844000,-2781.82699784,0.00029295,2]
[423064431,1779811844000,-1000.0,0.000295,2]
[423064434,1779811844000,-159.0,0.00029594,30]
[423064436,1779811844000,-237.0,0.00029594,30]
[423064437,1779811844000,-247.0,0.00029594,30]
[423064438,1779811844000,-165.0,0.00029597,30]
[423064378,1779811844000,-500.0,0.00027296,2]
[423064410,1779811844000,-150.0,0.00029,2]
[423064409,1779811844000,-150.0,0.00028897,2]
[423064365,1779811844000,-500.0,0.00027296,2]
[423064408,1779811844000,-2805.92768331,0.00028841,2]
[423064405,1779811844000,-504.0,0.00028743,5]
[423064382,1779811844000,-500.0,0.00027296,2]
[423064380,1779811844000,-500.0,0.00027296,2]
[423064383,1779811844000,-500.0,0.00027296,2]
[423064384,1779811844000,-500.0,0.00027296,2]
[423064385,1779811844000,-386.65471752,0.00027296,2]
[423064386,1779811844000,-2805.92768331,0.00027377,2]
[423064395,1779811844000,-172.39854152,0.0002788,2]
[423064376,1779811844000,-500.0,0.00027296,2]
[423064393,1779811844000,-173.01,0.00027771,30]
[423064390,1779811844000,-163.77,0.00027628,30]
[423064387,1779811844000,-500.0,0.00027399,2]
[423064388,1779811844000,-150.0,0.00027521,2]
[423064394,1779811844000,-5200.0,0.00027841,2]
[423064381,1779811844000,-500.0,0.00027296,2]
[423064392,1779811844000,-2494.55939288,0.00027651,2]
[423064389,1779811844000,-504.0,0.00027523,4]
[423064402,1779811844000,-163.54,0.00028317,2]
[423064399,1779811844000,-2586.85809042,0.00028199,2]
[423064403,1779811844000,-5450.0,0.00028632,2]
[423064400,1779811844000,-257.0,0.00028267,2]
[423064404,1779811844000,-459.24,0.00028672,2]
[423064401,1779811844000,-163.77,0.00028314,2]
[423064406,1779811844000,-2682.57183977,0.00028747,2]
[423064398,1779811844000,-367.65,0.00028142,120]
[423064397,1779811844000,-163.54,0.00027976,7]
[423064396,1779811844000,-163.77,0.00027971,7]
[423064391,1779811844000,-163.54,0.00027635,30]
[423064407,1779811844000,-208.92835186,0.00028755,2]
[423064457,1779811845000,-2805.92768331,0.00030304,2]
[423064456,1779811845000,-257.0,0.00030239,2]
[423064454,1779811845000,-420.0,0.00030144,3]
[423064455,1779811845000,-1212.999999,0.000302,2]
[423064469,1779811845000,-188.0,0.00030598,30]
[423064460,1779811845000,-2991.49051684,0.00030391,2]
[423064462,1779811845000,-152.0,0.00030594,30]
[423064463,1779811845000,-159.0,0.00030594,30]
[423064461,1779811845000,-161.0,0.00030594,30]
[423064451,1779811845000,-409.92474949,0.0003,2]
[423064459,1779811845000,-166.33844984,0.0003038,7]
[423064452,1779811845000,-6163.58,0.00030017,7]
[423064447,1779811845000,-163.390817,0.00029997,7]
[423064450,1779811845000,-51391.43893294,0.0003,7]
[423064449,1779811845000,-118528.75874726,0.0003,7]
[423064448,1779811845000,-169920.1976802,0.0003,7]
[423064446,1779811845000,-504.0,0.00029964,7]
[423064441,1779811845000,-158.0,0.00029598,30]
[423064444,1779811845000,-2884.75459676,0.00029843,2]
[423064442,1779811845000,-417.0,0.00029598,30]
[423064443,1779811845000,-267.0,0.00029598,30]
[423064445,1779811845000,-5555.0,0.00029875,2]
[423064440,1779811845000,-188.0,0.00029598,30]
[423064439,1779811845000,-202.0,0.00029597,30]
[423064467,1779811845000,-165.0,0.00030597,30]
[423064453,1779811845000,-885.52227417,0.00030066,14]
[423064470,1779811845000,-158.0,0.00030598,30]
[423064458,1779811845000,-150.0,0.00030341,2]
[423064471,1779811845000,-417.0,0.00030598,30]
[423064468,1779811845000,-202.0,0.00030597,30]
[423064495,1779811845000,-681.58,0.00031396,2]
[423064494,1779811845000,-4582.43473677,0.00031396,2]
[423064493,1779811845000,-2157.90626102,0.00031396,2]
[423064490,1779811845000,-315.25812705,0.00031396,2]
[423064488,1779811845000,-11871.47064605,0.00031396,2]
[423064489,1779811845000,-23094.30641104,0.00031396,2]
[423064492,1779811845000,-262.0,0.00031396,2]
[423064486,1779811845000,-587.0,0.00031333,3]
[423064487,1779811845000,-1395.31,0.00031351,2]
[423064485,1779811845000,-1521.56566917,0.00031213,2]
[423064474,1779811845000,-500.0,0.00030822,2]
[423064473,1779811845000,-367.65,0.000307,120]
[423064491,1779811845000,-10498.83039984,0.00031396,2]
[423064479,1779811845000,-332.67689968,0.00030968,7]
[423064480,1779811845000,-238.2460476,0.00030968,7]
[423064464,1779811845000,-154.0,0.00030594,30]
[423064476,1779811845000,-6163.58,0.00030882,7]
[423064472,1779811845000,-267.0,0.00030598,30]
[423064477,1779811845000,-600.0,0.000309,11]
[423064466,1779811845000,-247.0,0.00030594,30]
[423064481,1779811845000,-369.0,0.00031016,5]
[423064482,1779811845000,-546.0,0.00031089,30]
[423064478,1779811845000,-180.96308781,0.00030968,2]
[423064465,1779811845000,-237.0,0.00030594,30]
[423064484,1779811845000,-504.0,0.00031184,8]
[423064483,1779811845000,-623.58710447,0.00031118,2]
[423064475,1779811845000,-5651.0,0.00030874,2]
[423064539,1779811846000,-401.94282648,0.00032081,2]
[423064551,1779811846000,-154.0,0.00032594,30]
[423064535,1779811846000,-160.7185008,0.00032,120]
[423064533,1779811846000,-188.30999284,0.00032,120]
[423064538,1779811846000,-1000.0,0.0003208,120]
[423064529,1779811846000,-500.0,0.000319,11]
[423064504,1779811846000,-164.02,0.00027622,30]
[423064534,1779811846000,-207.07264916,0.00032,120]
[423064536,1779811846000,-151.0,0.00032,120]
[423064541,1779811846000,-1000.0,0.00032081,3]
[423064537,1779811846000,-1000.0,0.00032006,30]
[423064547,1779811846000,-823.0,0.00032569,3]
[423064542,1779811846000,-330.0,0.00032082,22]
[423064544,1779811846000,-257.0,0.0003221,5]
[423064543,1779811846000,-786.28,0.000322,4]
[423064540,1779811846000,-598.05717352,0.00032081,2]
[423064550,1779811846000,-159.0,0.00032594,30]
[423064546,1779811846000,-5874.0,0.00032451,2]
[423064548,1779811846000,-161.0,0.00032594,30]
[423064545,1779811846000,-504.0,0.00032405,9]
[423064549,1779811846000,-152.0,0.00032594,30]
[423064527,1779811846000,-7106.14351012,0.0003177,2]
[423064552,1779811846000,-237.0,0.00032594,30]
[423064532,1779811846000,-200.0,0.00032,120]
[423064514,1779811846000,-152.0,0.00031594,30]
[423064530,1779811846000,-386.2,0.00032,2]
[423064505,1779811846000,-275.0,0.00031396,2]
[423064503,1779811846000,-187.23,0.00024658,2]
[423064506,1779811846000,-4957.8,0.00031396,2]
[423064508,1779811846000,-1251.96341398,0.00031396,2]
[423064507,1779811846000,-164.02,0.00027966,7]
[423064509,1779811846000,-29609.19489665,0.00031396,2]
[423064512,1779811846000,-5777.0,0.00031478,2]
[423064510,1779811846000,-8239.326369,0.00031396,2]
[423064511,1779811846000,-273.0,0.00031396,30]
[423064513,1779811846000,-161.0,0.00031594,30]
[423064515,1779811846000,-159.0,0.00031594,30]
[423064516,1779811846000,-154.0,0.00031594,30]
[423064523,1779811846000,-417.0,0.00031598,30]
[423064517,1779811846000,-237.0,0.00031594,30]
[423064518,1779811846000,-247.0,0.00031594,30]
[423064521,1779811846000,-188.0,0.00031598,30]
[423064519,1779811846000,-165.0,0.00031597,30]
[423064525,1779811846000,-6163.58,0.00031746,30]
[423064522,1779811846000,-158.0,0.00031598,30]
[423064520,1779811846000,-202.0,0.00031597,30]
[423064524,1779811846000,-267.0,0.00031598,30]
[423064526,1779811846000,-2805.92768331,0.00031768,2]
[423064528,1779811846000,-150.0,0.00031858,2]
[423064531,1779811846000,-166.24505425,0.00032,120]
[423064554,1779811846000,-165.0,0.00032597,30]
[423064562,1779811846000,-267.0,0.00032598,30]
[423064553,1779811846000,-247.0,0.00032594,30]
[423064588,1779811846000,-417.0,0.00033598,30]
[423064592,1779811846000,-1152.0,0.00033853,3]
[423064590,1779811846000,-504.0,0.00033625,11]
[423064589,1779811846000,-267.0,0.00033598,30]
[423064583,1779811846000,-247.0,0.00033594,30]
[423064584,1779811846000,-165.0,0.00033597,30]
[423064582,1779811846000,-237.0,0.00033594,30]
[423064591,1779811846000,-5369.0,0.00033845,2]
[423064594,1779811846000,-200.0,0.000339,120]
[423064605,1779811846000,-237.0,0.00034594,30]
[423064587,1779811846000,-158.0,0.00033598,30]
[423064595,1779811846000,-3551.819,0.00033999,2]
[423064596,1779811846000,-207.186,0.00033999,2]
[423064603,1779811846000,-159.0,0.00034594,30]
[423064604,1779811846000,-160.0,0.00034594,30]
[423064602,1779811846000,-152.0,0.00034594,30]
[423064597,1779811846000,-330.0,0.00034037,33]
[423064599,1779811846000,-6163.58,0.0003434,30]
[423064598,1779811846000,-257.0,0.00034182,7]
[423064601,1779811846000,-161.0,0.00034594,30]
[423064600,1779811846000,-172.39854152,0.0003439,2]
[423064555,1779811846000,-202.0,0.00032597,30]
[423064593,1779811846000,-646.65982734,0.00033857,2]
[423064586,1779811846000,-188.0,0.00033598,30]
[423064579,1779811846000,-152.0,0.00033594,30]
[423064585,1779811846000,-202.0,0.00033597,30]
[423064581,1779811846000,-154.0,0.00033594,30]